fUSD/lending_fUSD_20241028
["ID","MTS","AMOUNT","RATE_DAILY","PERIOD"]
[340944855,1730143489851,-153.14,0.000438,36]
[340944856,1730143489894,-153.14,0.000438,36]
[340944857,1730143489939,-153.14,0.000438,36]
[340944858,1730143489984,-153.14,0.000438,36]
[340944859,1730143490026,-160.66,0.00043804,30]
[340944860,1730143490069,-160.66,0.00043804,30]
[340944861,1730143490110,-160.66,0.00043804,30]
[340944862,1730143490151,-160.66,0.00043813,30]
[340944863,1730143490195,-160.66,0.00043814,30]
[340944864,1730143490238,-160.66,0.00043814,30]
[340944865,1730143490280,-160.66,0.00043814,30]
[340944866,1730143490325,-160.66,0.00043814,30]
[340944867,1730143490366,-500.0,0.00043814,120]
[340944868,1730143490408,-500.0,0.00043814,120]
[340944869,1730143490456,-500.0,0.00043814,120]
[340944870,1730143490501,-500.0,0.00043814,120]
[340944871,1730143490546,-500.0,0.00043814,120]
[340944872,1730143490590,-500.0,0.00043814,120]
[340944873,1730143490632,-500.0,0.00043814,120]
[340944874,1730143490674,-500.0,0.00043814,120]
[340944875,1730143490716,-500.0,0.00043814,120]
[340944876,1730143490758,-500.0,0.00043814,120]
[340944877,1730143490800,-500.0,0.00043814,120]
[340944878,1730143490840,-500.0,0.00043814,120]
[340944879,1730143491086,-500.0,0.00043814,120]
[340944880,1730143491130,-500.0,0.00043814,120]
[340944881,1730143491175,-500.0,0.00043814,120]
[340944882,1730143491218,-500.0,0.00043814,120]
[340944883,1730143491263,-500.0,0.00043814,120]
[340944884,1730143491308,-500.0,0.00043814,120]
[340944885,1730143491355,-500.0,0.00043814,120]
[340944886,1730143491399,-500.0,0.00043814,120]
[340944887,1730143491446,-500.0,0.00043814,120]
[340944888,1730143491494,-500.0,0.00043814,120]
[340944889,1730143491541,-500.0,0.00043814,120]
[340944890,1730143491587,-500.0,0.00043814,120]
[340944891,1730143491632,-500.0,0.00043814,120]
[340944892,1730143491676,-500.0,0.00043814,120]
[340944893,1730143491720,-500.0,0.00043814,120]
[340944894,1730143491762,-500.0,0.00043814,120]
[340944895,1730143491805,-500.0,0.00043814,120]
[340944896,1730143491847,-500.0,0.00043814,120]
[340944897,1730143491891,-500.0,0.00043814,120]
[340944898,1730143491935,-500.0,0.00043814,120]
[340944899,1730143491982,-500.0,0.00043814,120]
[340944900,1730143492025,-500.0,0.00043814,120]
[340944901,1730143492067,-500.0,0.00043814,120]
[340944902,1730143492109,-500.0,0.00043814,120]
[340944903,1730143492151,-500.0,0.00043814,120]
[340944904,1730143492195,-500.0,0.00043814,120]
[340944905,1730143492237,-500.0,0.00043814,120]
[340944906,1730143492278,-500.0,0.00043814,120]
[340944907,1730143492319,-500.0,0.00043814,120]
[340944908,1730143492360,-500.0,0.00043814,120]
[340944909,1730143492403,-500.0,0.00043814,120]
[340944910,1730143492447,-500.0,0.00043814,120]
[340944911,1730143492492,-500.0,0.00043814,120]
[340944912,1730143492534,-500.0,0.00043814,120]
[340944913,1730143492576,-500.0,0.00043814,120]
[340944914,1730143492619,-500.0,0.00043814,120]
[340944915,1730143492662,-500.0,0.00043814,120]
[340944916,1730143492704,-500.0,0.00043814,120]
[340944917,1730143492744,-500.0,0.00043814,120]
[340944918,1730143492785,-500.0,0.00043814,120]
[340944919,1730143492825,-500.0,0.00043814,120]
[340944920,1730143492866,-500.0,0.00043814,120]
[340944921,1730143492907,-500.0,0.00043814,120]
[340944922,1730143492949,-500.0,0.00043814,120]
[340944923,1730143492992,-500.0,0.00043814,120]
[340944924,1730143493034,-500.0,0.00043814,120]
[340944925,1730143493076,-500.0,0.00043814,120]
[340944926,1730143493116,-500.0,0.00043814,120]
[340944927,1730143493156,-500.0,0.00043814,120]
[340944928,1730143493197,-500.0,0.00043814,120]
[340944929,1730143493235,-500.0,0.00043814,120]
[340944930,1730143493277,-500.0,0.00043814,120]
[340944931,1730143493316,-500.0,0.00043814,120]
[340944932,1730143493356,-500.0,0.00043814,120]
[340944933,1730143493395,-500.0,0.00043814,120]
[340944934,1730143493437,-500.0,0.00043814,120]
[340944935,1730143493477,-500.0,0.00043814,120]
[340944936,1730143493517,-160.66,0.00043814,30]
[340944937,1730143493560,-8926.88,0.00043823,120]
[340944938,1730143493602,-1000.0,0.00043823,120]
[340944939,1730143493643,-505.38048423,0.00043823,31]
[340944940,1730143493685,-2947228.10957692,0.00043824,120]
[340944941,1730143493763,489.0,0.00043934,120]
[340944942,1730143493919,632.2587,0.00043934,30]
[340944943,1730143499897,938.0,0.00043934,30]
[340944944,1730143502108,182.9854276,0.00043934,30]
[340944945,1730143503069,-172440.0596988,0.00043824,120]
[340944946,1730143503118,-500.0,0.00043835,60]
[340944947,1730143503162,-259.88404206,0.00043835,60]
[340944948,1730143503214,-500.0,0.00043835,60]
[340944949,1730143503261,-500.0,0.00043835,60]
[340944950,1730143503307,-500.0,0.00043835,60]
[340944951,1730143503358,-500.0,0.00043835,60]
[340944952,1730143503411,-500.0,0.00043835,60]
[340944953,1730143503461,-400.17025522,0.00043835,60]
[340944954,1730143503508,-1000.0,0.00043835,120]
[340944955,1730143503556,-164851.0,0.00043836,120]
[340944956,1730143507692,4642989.37538852,0.00016,2]
[340944957,1730143510378,938.0,0.00043934,30]
[340944958,1730143520956,938.0,0.00043934,30]
[340944959,1730143531506,938.0,0.00043934,30]
[340944960,1730143542061,938.0,0.00043934,30]
[340944964,1730143552709,938.0,0.00043934,30]
[340944965,1730143553655,632.2587,0.00043934,30]
[340944966,1730143554989,730.37359272,0.000159,2]
[340944967,1730143559712,168.7085729,0.00043934,31]
[340944968,1730143563199,938.0,0.00043934,30]
[340944969,1730143573769,938.0,0.00043934,30]
[340944970,1730143575604,200.00474837,0.00043934,30]
[340944971,1730143583072,489.0,0.00043934,120]
[340944972,1730143584380,938.0,0.00043934,30]
[340944973,1730143585913,534.74517832,0.00043934,120]
[340944974,1730143594885,938.0,0.00043934,30]
[340944975,1730143605514,938.0,0.00043934,30]
[340944976,1730143616054,938.0,0.00043934,30]
[340944977,1730143626629,938.0,0.00043934,30]
[340944978,1730143630330,157.87272261,0.00043934,30]
[340944979,1730143637193,805.89728738,0.00043934,30]
[340944980,1730143638223,681.76913754,0.00043934,120]
[340944984,1730143648125,938.0,0.00043934,30]
[340944990,1730143669107,419.6164021,0.00043934,120]
[340944992,1730143703320,1752.4852335,0.0002,2]
[340944994,1730143714607,183.54775056,0.00043934,30]
[340944997,1730143717666,2574.72012637,0.00010998,2]
[340944998,1730143719032,800.0,0.00043934,120]
[340945001,1730143720393,161.03622296,0.00043934,120]
[340945003,1730143722322,242.93174844,0.00043934,30]
[340945004,1730143722378,858.32095843,0.00043934,120]
[340945006,1730143726912,220.86370898,0.00043934,30]
[340945007,1730143728559,254.74660013,0.000107,2]
[340945009,1730143729814,557.53116092,0.00043934,90]
[340945045,1730143791714,362.04467418,0.00043934,60]
[340945048,1730143802483,182.9854276,0.00043934,30]
[340945078,1730143832377,-256.83482692,0.00022,12]
[340945080,1730143832387,-875.26698529,0.000267,2]
[340945082,1730143832397,-580.59818357,0.000268,2]
[340945085,1730143832415,-593.40181643,0.000268,2]
[340945088,1730143832428,-583.99878009,0.000269,2]
[340945090,1730143832438,-283.06794255,0.00027,7]
[340945096,1730143832612,-748.23963345,0.00027,7]
[340945097,1730143832622,-257.04423096,0.000281,2]
[340945098,1730143832631,-19070.14674572,0.000299,2]
[340945099,1730143832642,-250.752136,0.0003,2]
[340945100,1730143832653,-4581.29287065,0.000328,2]
[340945101,1730143832663,-160.66,0.0003299,2]
[340945102,1730143832672,-24347.16956871,0.00033,2]
[340945103,1730143832698,-688.184246,0.00035731,7]
[340945104,1730143832708,-903.17198698,0.00036,2]
[340945105,1730143832717,-630.57602264,0.00036,2]
[340945106,1730143832727,-273.08,0.000364,2]
[340945107,1730143832736,-150.0,0.00037265,2]
[340945108,1730143832745,-225.07,0.00037458,2]
[340945109,1730143832754,-4134.38453939,0.0003759,2]
[340945110,1730143832764,-160.66,0.0003789,2]
[340945112,1730143832773,-6500.93347612,0.000379,2]
[340945114,1730143832785,-10632.13003459,0.000379,2]
[340945117,1730143832796,-250.0,0.00037968,120]
[340945119,1730143832805,-160.014,0.00038152,2]
[340945121,1730143832814,-164.95576904,0.0003828,2]
[340945123,1730143832824,-160.66,0.0003847,2]
[340945125,1730143832833,-1248.0,0.0003848,2]
[340945127,1730143832842,-921.007,0.0003848,2]
[340945128,1730143832851,-561.0,0.0003848,2]
[340945130,1730143832860,-451.0,0.0003848,2]
[340945133,1730143832870,-7463.888,0.0003848,2]
[340945134,1730143832882,-726.573,0.0003848,2]
[340945137,1730143832892,-811.0,0.0003848,2]
[340945139,1730143832902,-1258.009,0.0003848,2]
[340945141,1730143832911,-250.0,0.00038508,2]
[340945143,1730143832921,-169.7,0.00039576,120]
[340945145,1730143832931,-160.66,0.0003979,2]
[340945147,1730143832941,-160.66,0.0003979,2]
[340945148,1730143832951,-160.66,0.0003979,2]
[340945151,1730143832961,-160.66,0.0003979,2]
[340945153,1730143832970,-160.66,0.0003979,2]
[340945154,1730143832979,-160.66,0.0003979,2]
[340945156,1730143832989,-160.66,0.0003979,2]
[340945159,1730143832999,-500.0,0.00039799,3]
[340945160,1730143833008,-500.0,0.00039799,3]
[340945163,1730143833018,-505.38048423,0.00039799,31]
[340945165,1730143833028,-69068.77033904,0.000398,2]
[340945167,1730143833041,-4186.083512,0.000398,2]
[340945199,1730143837399,-270.88055,0.0003848,2]
[340945200,1730143837598,-1934.11945,0.0003848,2]
[340945201,1730143837610,-500.0,0.00039799,3]
[340945202,1730143837620,-500.0,0.00039799,3]
[340945203,1730143837631,-6372.30491913,0.000398,2]
[340945204,1730143837710,-630.96,0.000398,2]
[340945205,1730143837722,-2097.774,0.000398,2]
[340945206,1730143837734,-21999.616,0.000398,2]
[340945207,1730143837910,-69787.95479997,0.000398,2]
[340945362,1730143839628,-500.0,0.00039799,3]
[340945380,1730143839829,-100.97313695,0.000398,2]
[340945383,1730143839843,-314.7734,0.000398,2]
[340945392,1730143839919,-449.00547125,0.000398,2]
[340945394,1730143839932,-1139.45655676,0.000398,2]
[340945396,1730143839943,-10113.45714436,0.000398,2]
[340945490,1730143842551,-500.0,0.00039799,3]
[340945491,1730143842562,-500.0,0.00039799,3]
[340945492,1730143842572,-22356.42822409,0.000398,2]
[340945493,1730143842586,-332.06035522,0.000398,2]
[340945494,1730143842658,-3203.33989776,0.000398,2]
[340945495,1730143842667,-199.7116785,0.00039899,2]
[340945496,1730143842677,-2856.22972289,0.0003999,9]
[340945497,1730143842770,-73.55797725,0.0003999,9]
[340945499,1730143842779,-280.1846687,0.00039999,3]
[340945526,1730143845482,-833.1,0.00039822,2]
[340945527,1730143845493,-219.8153313,0.00039999,3]
[340945528,1730143845504,-628.46824072,0.00039999,3]
[340945529,1730143845514,-416.09642798,0.00039999,3]
[340945530,1730143845527,-83.90357202,0.00039999,3]
[340945531,1730143845537,-424.04353248,0.00039999,3]
[340945532,1730143845549,-75.95646752,0.00039999,3]
[340945533,1730143845559,-609.08707701,0.00039999,3]
[340945534,1730143845573,-676.63,0.00039999,3]
[340945535,1730143845583,-500.0,0.00039999,3]
[340945536,1730143845595,-251.60019653,0.00039999,3]
[340945537,1730143845615,-1247.65980347,0.00039999,3]
[340945538,1730143845626,-500.0,0.00039999,3]
[340945539,1730143845636,-610.27832406,0.00039999,3]
[340945540,1730143845646,-664.64,0.00039999,3]
[340945541,1730143845657,-999.67,0.00039999,3]
[340945542,1730143845667,-500.0,0.00039999,3]
[340945543,1730143845677,-634.59965299,0.00039999,3]
[340945544,1730143845687,-500.0,0.00039999,3]
[340945545,1730143845698,-517.22,0.00039999,3]
[340945546,1730143845708,-845.33,0.00039999,3]
[340945547,1730143845718,-500.0,0.00039999,3]
[340945548,1730143845727,-500.0,0.00039999,3]
[340945549,1730143845736,-552.84,0.00039999,3]
[340945550,1730143845747,-946.63,0.00039999,3]
[340945551,1730143845758,-500.0,0.00039999,3]
[340945552,1730143845767,-500.0,0.00039999,3]
[340945553,1730143845776,-491.497,0.00039999,2]
[340945554,1730143845787,-606.55,0.00039999,2]
[340945555,1730143845796,-500.0,0.00039999,3]
[340945556,1730143845805,-500.0,0.00039999,3]
[340945557,1730143845815,-500.0,0.00039999,3]
[340945558,1730143845824,-500.0,0.00039999,3]
[340945559,1730143845833,-2999.96,0.0004,2]
[340945560,1730143845843,-3000.0,0.0004,2]
[340945561,1730143845854,-3000.0,0.0004,2]
[340945562,1730143845864,-3000.0,0.0004,2]
[340945563,1730143845874,-3000.0,0.0004,2]
[340945564,1730143845885,-1180.48,0.0004,2]
[340945565,1730143845895,-34004.61521952,0.0004,2]
[340945566,1730143845908,-53952.38478048,0.0004,2]
[340945567,1730143845919,-372.94174692,0.0004,2]
[340945568,1730143845929,-209.10634073,0.0004,2]
[340945569,1730143845941,-366.53928147,0.00040073,3]
[340945570,1730143845952,-500.0,0.00040073,3]
[340945571,1730143845961,-500.0,0.00040073,3]
[340945572,1730143845971,-500.0,0.00040073,3]
[340945573,1730143845980,-500.0,0.00040073,3]
[340945574,1730143845989,-500.0,0.00040073,3]
[340945575,1730143845999,-594.48453511,0.00040073,3]
[340945576,1730143846010,-619.19,0.00040075,2]
[340945577,1730143846020,-500.0,0.00040273,3]
[340945578,1730143846030,-500.0,0.00040273,3]
[340945579,1730143846041,-500.0,0.00040273,3]
[340945580,1730143846051,-676.63,0.00040273,3]
[340945582,1730143846060,-500.0,0.00040273,3]
[340945584,1730143846070,-1499.26,0.00040273,3]
[340945586,1730143846080,-664.64,0.00040273,3]
[340945588,1730143846090,-999.67,0.00040273,3]
[340945590,1730143846101,-500.0,0.00040273,3]
[340945592,1730143846111,-500.0,0.00040273,3]
[340945594,1730143846121,-517.22,0.00040273,3]
[340945596,1730143846132,-845.33,0.00040273,3]
[340945598,1730143846142,-500.0,0.00040273,3]
[340945600,1730143846153,-500.0,0.00040273,3]
[340945602,1730143846163,-552.84,0.00040273,3]
[340945604,1730143846173,-946.63,0.00040273,3]
[340945606,1730143846183,-500.0,0.00040273,3]
[340945608,1730143846193,-500.0,0.00040273,3]
[340945610,1730143846203,-606.55,0.00040273,2]
[340945612,1730143846213,-500.0,0.00040273,3]
[340945613,1730143846223,-500.0,0.00040273,3]
[340945615,1730143846233,-500.0,0.00040273,3]
[340945617,1730143846243,-500.0,0.00040347,3]
[340945619,1730143846253,-560.57949082,0.00040347,3]
[340945621,1730143846262,-500.0,0.00040347,3]
[340945623,1730143846272,-500.0,0.00040347,3]
[340945625,1730143846281,-500.0,0.00040347,3]
[340945628,1730143846293,-500.0,0.00040547,3]
[340945630,1730143846302,-500.0,0.00040547,3]
[340945632,1730143846312,-500.0,0.00040547,3]
[340945634,1730143846323,-676.63,0.00040547,3]
[340945636,1730143846332,-500.0,0.00040547,3]
[340945638,1730143846343,-1499.26,0.00040547,3]
[340945640,1730143846354,-664.64,0.00040547,3]
[340945642,1730143846364,-999.67,0.00040547,3]
[340945644,1730143846374,-500.0,0.00040547,3]
[340945646,1730143846384,-500.0,0.00040547,3]
[340945648,1730143846394,-517.22,0.00040547,3]
[340945650,1730143846403,-845.33,0.00040547,3]
[340945652,1730143846413,-500.0,0.00040547,3]
[340945654,1730143846423,-552.84,0.00040547,3]
[340945656,1730143846433,-946.63,0.00040547,3]
[340945658,1730143846442,-500.0,0.00040547,3]
[340945660,1730143846452,-500.0,0.00040547,3]
[340945662,1730143846462,-606.55,0.00040547,2]
[340945664,1730143846471,-500.0,0.00040547,3]
[340945666,1730143846480,-500.0,0.00040547,3]
[340945668,1730143846490,-500.0,0.00040547,3]
[340945670,1730143846500,-500.0,0.00040621,3]
[340945672,1730143846510,-643.68375934,0.00040621,3]
[340945674,1730143846520,-383.08980306,0.00040621,3]
[340945676,1730143846530,-500.0,0.00040621,3]
[340945678,1730143846539,-83787.73115252,0.0004079,2]
[340945681,1730143846553,-15245.91991595,0.0004079,2]
[340945683,1730143846563,-500.0,0.00040821,3]
[340945685,1730143846573,-500.0,0.00040821,3]
[340945687,1730143846583,-500.0,0.00040821,3]
[340945688,1730143846592,-676.63,0.00040821,3]
[340945690,1730143846603,-500.0,0.00040821,3]
[340945692,1730143846614,-1499.26,0.00040821,3]
[340945695,1730143846624,-664.64,0.00040821,3]
[340945697,1730143846634,-999.67,0.00040821,3]
[340945698,1730143846644,-500.0,0.00040821,3]
[340945699,1730143846654,-500.0,0.00040821,3]
[340945700,1730143846664,-517.22,0.00040821,3]
[340945702,1730143846673,-845.33,0.00040821,3]
[340945704,1730143846683,-500.0,0.00040821,3]
[340945706,1730143846693,-552.84,0.00040821,3]
[340945708,1730143846703,-946.63,0.00040821,3]
[340945710,1730143846714,-500.0,0.00040821,3]
[340945712,1730143846723,-500.0,0.00040821,3]
[340945714,1730143846733,-606.55,0.00040821,2]
[340945716,1730143846743,-500.0,0.00040821,3]
[340945718,1730143846752,-500.0,0.00040821,3]
[340945720,1730143846762,-500.0,0.00040821,3]
[340945722,1730143846772,-500.0,0.00040895,3]
[340945724,1730143846782,-500.0,0.00040895,3]
[340945726,1730143846792,-340.65346158,0.00040973,5]
[340945728,1730143846803,-8789.36310042,0.0004099,9]
[340945729,1730143846813,-155.98,0.0004099,2]
[340945730,1730143846823,-11533.0,0.00041,3]
[340945731,1730143846832,-247474.48951155,0.00041,30]
[340945732,1730143846842,-500.0,0.00041095,3]
[340945734,1730143846851,-500.0,0.00041095,3]
[340945735,1730143846860,-500.0,0.00041095,3]
[340945737,1730143846870,-676.63,0.00041095,3]
[340945739,1730143846879,-594.63447635,0.00041095,3]
[340945741,1730143846889,-1499.26,0.00041095,3]
[340945743,1730143846899,-664.64,0.00041095,3]
[340945745,1730143846908,-999.67,0.00041095,3]
[340945747,1730143846918,-521.70790337,0.00041095,3]
[340945749,1730143846929,-500.0,0.00041095,3]
[340945751,1730143846942,-517.22,0.00041095,3]
[340945753,1730143846952,-845.33,0.00041095,3]
[340945755,1730143846962,-500.0,0.00041095,3]
[340945757,1730143846971,-552.84,0.00041095,3]
[340945759,1730143846981,-946.63,0.00041095,3]
[340945761,1730143846991,-500.0,0.00041095,3]
[340945763,1730143847001,-500.0,0.00041095,3]
[340945765,1730143847011,-606.55,0.00041095,2]
[340945767,1730143847020,-311.20490705,0.00041095,3]
[340945769,1730143847030,-500.0,0.00041095,3]
[340945771,1730143847040,-500.0,0.00041095,3]
[340945773,1730143847050,-176.44,0.00041108,2]
[340945776,1730143847061,-500.0,0.00041169,3]
[340945778,1730143847070,-500.0,0.00041169,3]
[340945780,1730143847081,-183.67,0.00041289,2]
[340945782,1730143847091,-500.0,0.00041369,3]
[340945784,1730143847101,-500.0,0.00041369,3]
[340945786,1730143847111,-500.0,0.00041369,3]
[340945788,1730143847121,-676.63,0.00041369,3]
[340945790,1730143847131,-1499.26,0.00041369,3]
[340945792,1730143847141,-664.64,0.00041369,3]
[340945794,1730143847152,-999.67,0.00041369,3]
[340945796,1730143847161,-500.0,0.00041369,3]
[340945798,1730143847171,-517.22,0.00041369,3]
[340945800,1730143847180,-845.33,0.00041369,3]
[340945802,1730143847192,-500.0,0.00041369,3]
[340945804,1730143847202,-552.84,0.00041369,3]
[340945806,1730143847211,-946.63,0.00041369,3]
[340945808,1730143847221,-500.0,0.00041369,3]
[340945810,1730143847231,-500.0,0.00041369,3]
[340945812,1730143847241,-606.55,0.00041369,2]
[340945814,1730143847251,-500.0,0.00041369,3]
[340945816,1730143847260,-500.0,0.00041369,3]
[340945818,1730143847270,-500.0,0.00041443,3]
[340945819,1730143847279,-500.0,0.00041443,3]
[340945822,1730143847289,-2929.78770014,0.0004147,9]
[340945824,1730143847298,-1165.926,0.0004148,2]
[340945826,1730143847308,-277.019,0.0004148,2]
[340945828,1730143847317,-451.0,0.0004148,2]
[340945830,1730143847326,-604.41,0.0004148,2]
[340945831,1730143847336,-2205.0,0.0004148,2]
[340945834,1730143847346,-500.0,0.00041643,3]
[340945836,1730143847357,-500.0,0.00041643,3]
[340945838,1730143847366,-571.4,0.00041643,3]
[340945840,1730143847375,-676.63,0.00041643,3]
[340945842,1730143847386,-1499.26,0.00041643,3]
[340945844,1730143847396,-664.64,0.00041643,3]
[340945846,1730143847406,-999.67,0.00041643,3]
[340945848,1730143847416,-500.0,0.00041643,3]
[340945850,1730143847425,-517.22,0.00041643,3]
[340945852,1730143847438,-845.33,0.00041643,3]
[340945854,1730143847447,-500.0,0.00041643,3]
[340945856,1730143847456,-552.84,0.00041643,3]
[340945858,1730143847466,-946.63,0.00041643,3]
[340945860,1730143847476,-500.0,0.00041643,3]
[340945862,1730143847485,-500.0,0.00041643,3]
[340945864,1730143847495,-606.55,0.00041643,2]
[340945866,1730143847505,-500.0,0.00041643,3]
[340945868,1730143847514,-500.0,0.00041643,3]
[340945870,1730143847524,-500.0,0.00041717,3]
[340945872,1730143847533,-500.0,0.00041717,3]
[340945874,1730143847543,-1379.9507,0.000418,2]
[340945876,1730143847552,-199.7116785,0.00041867,28]
[340945878,1730143847564,-153.51877826,0.000419,15]
[340945880,1730143847574,-500.0,0.00041917,3]
[340945882,1730143847584,-500.0,0.00041917,3]
[340945884,1730143847593,-676.63,0.00041917,3]
[340945886,1730143847603,-585.52017883,0.00041917,3]
[340945890,1730143847628,-913.73982117,0.00041917,3]
[340945892,1730143847638,-664.64,0.00041917,3]
[340945894,1730143847648,-999.67,0.00041917,3]
[340945896,1730143847658,-500.0,0.00041917,3]
[340945898,1730143847667,-517.22,0.00041917,3]
[340945900,1730143847677,-845.33,0.00041917,3]
[340945902,1730143847691,-500.0,0.00041917,3]
[340945904,1730143847701,-552.84,0.00041917,3]
[340945922,1730143847857,-946.63,0.00041917,3]
[340945924,1730143847871,-500.0,0.00041917,3]
[340945926,1730143847883,-500.0,0.00041917,3]
[340945928,1730143847892,-606.55,0.00041917,2]
[340945930,1730143847902,-500.0,0.00041917,3]
[340945932,1730143847912,-500.0,0.00041917,3]
[340945934,1730143847922,-150.0,0.00041927,2]
[340945936,1730143847932,-155.98,0.0004198,2]
[340945938,1730143847944,-108402.144905,0.0004199,9]
[340945940,1730143847955,-155.98,0.0004199,2]
[340945942,1730143847965,-504.74391514,0.00041991,3]
[340945944,1730143847975,-500.0,0.00041991,3]
[340945946,1730143847985,-351177.69471478,0.00042,2]
[340945948,1730143847995,-11533.0,0.00042,5]
[340945951,1730143848004,-1856.72300493,0.00042,30]
[340945952,1730143848014,-500.0,0.00042046,2]
[340945954,1730143848023,-1040.66,0.00042145,2]
[340945955,1730143848034,-500.0,0.00042191,3]
[340945956,1730143848044,-500.0,0.00042191,3]
[340945957,1730143848054,-676.63,0.00042191,3]
[340945958,1730143848063,-1499.26,0.00042191,3]
[340945959,1730143848073,-664.64,0.00042191,3]
[340945960,1730143848083,-999.67,0.00042191,3]
[340945961,1730143848093,-500.0,0.00042191,3]
[340945962,1730143848103,-517.22,0.00042191,3]
[340945963,1730143848113,-845.33,0.00042191,3]
[340945964,1730143848122,-500.0,0.00042191,3]
[340945965,1730143848133,-552.84,0.00042191,3]
[340945966,1730143848143,-946.63,0.00042191,3]
[340945967,1730143848153,-500.0,0.00042191,3]
[340945968,1730143848163,-500.0,0.00042191,3]
[340945969,1730143848173,-606.55,0.00042191,2]
[340945970,1730143848183,-500.0,0.00042191,3]
[340945971,1730143848193,-500.0,0.00042191,3]
[340945972,1730143848203,-153.5187782,0.00042222,15]
[340945973,1730143848213,-500.0,0.00042265,3]
[340945974,1730143848223,-200.0,0.00042274,4]
[340945975,1730143848232,-315.5874398,0.00042321,4]
[340945976,1730143848242,-619.19,0.00042339,2]
[340945977,1730143848251,-315.5874398,0.00042351,4]
[340945978,1730143848261,-200.0,0.00042355,4]
[340945979,1730143848270,-315.5874398,0.00042361,4]
[340945980,1730143848280,-200.0,0.00042399,4]
[340945981,1730143848290,-315.5874398,0.00042417,4]
[340945982,1730143848299,-315.5874398,0.00042419,4]
[340945983,1730143848309,-200.0,0.00042426,4]
[340945984,1730143848318,-200.0,0.00042442,4]
[340945985,1730143848327,-315.5874398,0.00042462,4]
[340945986,1730143848338,-537.31612659,0.00042465,3]
[340945987,1730143848349,-500.0,0.00042465,3]
[340945988,1730143848359,-676.63,0.00042465,3]
[340945989,1730143848369,-1499.26,0.00042465,3]
[340945990,1730143848379,-664.64,0.00042465,3]
[340945991,1730143848388,-999.67,0.00042465,3]
[340945992,1730143848398,-500.0,0.00042465,3]
[340945993,1730143848408,-517.22,0.00042465,3]
[340945994,1730143848417,-845.33,0.00042465,3]
[340945995,1730143848427,-500.0,0.00042465,3]
[340945996,1730143848438,-552.84,0.00042465,3]
[340945997,1730143848448,-946.63,0.00042465,3]
[340945998,1730143848458,-500.0,0.00042465,3]
[340945999,1730143848468,-500.0,0.00042465,3]
[340946000,1730143848477,-606.55,0.00042465,2]
[340946001,1730143848486,-500.0,0.00042465,3]
[340946002,1730143848496,-500.0,0.00042465,3]
[340946003,1730143848506,-200.0,0.0004247,4]
[340946004,1730143848516,-356.00882708,0.00042475,2]
[340946005,1730143848526,-1000.0,0.0004248,2]
[340946006,1730143848536,-559.73668321,0.000425,2]
[340946007,1730143848545,-500.0,0.00042539,3]
[340946008,1730143848556,-153.5187782,0.00042545,15]